Workbook

Sheet Kierunek
E2: PLAN STUDIÓW DLA KIERUNKU: | F2: Elektronika i Telekomunikacja - studia I-go stopnia | U2: (stacjonarne)
F3: część wspólna dla wszystkich specjalności | AO3: Data sporządzenia: | AP3: 2018-06-12
AO4: Obowiązuje od roku akademickiego: | AP4: 2018 / 2019
C5: Lp | D5: Moduły | E5: Suma godzin / ECTS | K5: Sem. I | P5: Sem. II | U5: Sem. III | Z5: Sem. IV | AE5: Sem. V | AJ5: Sem. VI | AO5: Sem. VII
E6: W | F6: Ć | G6: L | H6: P | I6: S | J6: PE | K6: W | L6: Ć | M6: L | N6: P | O6: PE | P6: W | Q6: Ć | R6: L | S6: P | T6: PE | U6: W | V6: Ć | W6: L | X6: P | Y6: PE | Z6: W | AA6: Ć | AB6: L | AC6: P | AD6: PE | AE6: W | AF6: Ć | AG6: L | AH6: P | AI6: PE | AJ6: W | AK6: Ć | AL6: L | AM6: P | AN6: PE | AO6: W | AP6: Ć | AQ6: L | AR6: P | AS6: PE
C7: M1_MO KSZTAŁCENIA OGÓLNEGO | E7: =SUM(E8:E13) -> 90 | F7: 210 | G7: 0 | H7: 0 | I7: 300 | J7: 16 | K7: 4 | L7: 5 | M7: 0 | N7: 0 | O7: 7 | P7: 2 | Q7: 5 | R7: 0 | S7: 0 | T7: 5 | U7: 0 | V7: 2 | W7: 0 | X7: 0 | Y7: 2 | Z7: 0 | AA7: 2 | AB7: 0 | AC7: 0 | AD7: 2 | AE7: 0 | AF7: 0 | AG7: 0 | AH7: 0 | AI7: 0 | AJ7: 0 | AK7: =SUM(AK8:AK13) -> 0 | AL7: 0 | AM7: 0 | AN7: 0 | AO7: 0 | AP7: 0 | AQ7: 0 | AR7: 0 | AS7: 0
C8: 1 | D8: Nauki humanistyczne (obieralny) | E8: =P!tyg*SUMIF($K$6:$AR$6,"W",$K$8:$AR$8) -> 45 | F8: =P!tyg*SUMIF($K$6:$AR$6,"Ć",$K$8:$AR$8) -> 30 | G8: 0 | H8: 0 | I8: =SUM(E8:H8) -> 75 | J8: =SUMIF($K$6:$AS$6,J$6,$K8:$AS8) -> 5 | K8: =15/P!tyg -> 1 | L8: =15/P!tyg -> 1 | O8: 2 | P8: 2 | Q8: =15/P!tyg -> 1 | T8: 3
C9: 2 | D9: Ergonomia | E9: 0 | F9: 0 | G9: 0 | H9: =P!tyg*SUMIF($K$6:$AR$6,"P",$K$9:$AR$9) -> 0 | I9: 0 | J9: 0
A10: 1 | C10: 3 | D10: Język obcy (obieralny) | E10: 0 | F10: =P!tyg*SUMIF($K$6:$AR$6,"Ć",$K$10:$AR$10) -> 120 | G10: 0 | H10: 0 | I10: 120 | J10: 8 | L10: =30/P!tyg -> 2 | O10: 2 | Q10: =30/P!tyg -> 2 | T10: 2 | V10: =30/P!tyg -> 2 | Y10: 2 | AA10: =30/P!tyg -> 2 | AD10: 2
A11: 1 | C11: 4 | D11: WF | E11: 0 | F11: =P!tyg*SUMIF($K$6:$AR$6,"Ć",$K$11:$AR$11) -> 60 | G11: 0 | H11: 0 | I11: 60 | J11: 0 | L11: =30/P!tyg -> 2 | Q11: =30/P!tyg -> 2
C12: 5 | D12: Nauki ekonomiczne (obieralny) | E12: =P!tyg*SUMIF($K$6:$AR$6,"W",$K$12:$AR$12) -> 30 | F12: 0 | G12: 0 | H12: 0 | I12: 30 | J12: 2 | K12: =30/P!tyg -> 2 | O12: 2
A13: 1 | C13: 6 | D13: Ochrona własności intelektualnej | E13: =P!tyg*SUMIF($K$6:$AR$6,"W",$K$13:$AR$13) -> 15 | G13: 0 | H13: 0 | I13: 15 | J13: 1 | K13: =15/P!tyg -> 1 | O13: 1
A14: 2 | C14: M1_MF MATEMATYCZNO-FIZYCZNY | E14: =SUM(E15:E23) -> 165 | F14: 150 | G14: 30 | H14: 0 | I14: 345 | J14: 23 | K14: 6 | L14: 7 | M14: =SUM(M15:M23) -> 0 | N14: 0 | O14: =SUM(O15:O23) -> 12 | P14: 4 | Q14: 2 | R14: 2 | S14: 0 | T14: 9 | U14: 1 | V14: 1 | W14: 0 | X14: =SUM(X16:X23) -> 0 | Y14: =SUM(Y15:Y23) -> 2 | Z14: =SUM(Z15:Z23) -> 0 | AA14: 0 | AB14: 0 | AC14: 0 | AD14: 0 | AE14: 0 | AF14: 0 | AG14: 0 | AH14: 0 | AI14: 0 | AJ14: 0 | AK14: 0 | AL14: 0 | AM14: 0 | AN14: 0 | AO14: 0 | AP14: 0 | AQ14: 0 | AR14: 0 | AS14: 0
A15: 1 | C15: 1 | D15: Podstawy analizy matematycznej | E15: =P!tyg*SUMIF($K$6:$AR$6,"W",$K$15:$AR$15) -> 30 | F15: =P!tyg*SUMIF($K$6:$AR$6,"Ć",$K$15:$AR$15) -> 15 | G15: 0 | H15: 0 | I15: =SUM(E15:H15) -> 45 | J15: =SUMIF($K$6:$AS$6,J$6,$K15:$AS15) -> 4 | K15: =30/P!tyg -> 2 | L15: =15/P!tyg -> 1 | O15: 4
A16: 1 | C16: 2 | D16: Algebra liniowa i geometria analityczna | E16: =P!tyg*SUMIF($K$6:$AR$6,"W",$K$16:$AR$16) -> 30 | F16: =P!tyg*SUMIF($K$6:$AR$6,"Ć",$K$16:$AR$16) -> 15 | G16: 0 | H16: 0 | I16: 45 | J16: 4 | K16: =30/P!tyg -> 2 | L16: =15/P!tyg -> 1 | O16: 4
A17: 1 | C17: 3 | D17: Probabilistyka i statystyka | E17: =P!tyg*SUMIF($K$6:$AR$6,"W",$K$17:$AR$17) -> 15 | F17: =P!tyg*SUMIF($K$6:$AR$6,"Ć",$K$17:$AR$17) -> 15 | G17: 0 | H17: 0 | I17: 30 | J17: 2 | U17: =15/P!tyg -> 1 | V17: =15/P!tyg -> 1 | Y17: 2
A18: 1 | C18: 4 | D18: Analiza matematyczna | E18: =P!tyg*SUMIF($K$6:$AR$6,"W",$K$18:$AR$18) -> 30 | F18: =P!tyg*SUMIF($K$6:$AR$6,"Ć",$K$18:$AR$18) -> 15 | G18: 0 | H18: 0 | I18: 45 | J18: 4 | P18: =30/P!tyg -> 2 | Q18: =15/P!tyg -> 1 | T18: 4
A19: 1 | C19: 5 | D19: Funkcje zmiennej zespolonej | E19: =P!tyg*SUMIF($K$6:$AR$6,"W",$K$19:$AR$19) -> 15 | F19: =P!tyg*SUMIF($K$6:$AR$6,"Ć",$K$19:$AR$19) -> 15 | G19: 0 | H19: 0 | I19: 30 | J19: 2 | P19: =15/P!tyg -> 1 | Q19: =15/P!tyg -> 1 | T19: 2
C20: 6 | D20: Repetytorium z matematyki | E20: =P!tyg*SUMIF($K$6:$AR$6,"W",$K$20:$AR$20) -> 0 | F20: =P!tyg*SUMIF($K$6:$AR$6,"Ć",$K$20:$AR$20) -> 30 | I20: 30 | J20: 0 | L20: 2 | O20: 0
C21: 7 | D21: Repetytorium z fizyki | E21: =P!tyg*SUMIF($K$6:$AR$6,"W",$K$21:$AR$21) -> 0 | F21: =P!tyg*SUMIF($K$6:$AR$6,"Ć",$K$21:$AR$21) -> 30 | I21: 30 | J21: 0 | L21: 2 | O21: 0
A22: 1 | C22: 8 | D22: Fizyka | E22: =P!tyg*SUMIF($K$6:$AR$6,"W",$K$22:$AR$22) -> 45 | F22: =P!tyg*SUMIF($K$6:$AR$6,"Ć",$K$22:$AR$22) -> 15 | G22: 0 | H22: 0 | I22: 60 | J22: 5 | K22: =30/P!tyg -> 2 | L22: =15/P!tyg -> 1 | O22: 4 | P22: =15/P!tyg -> 1 | T22: 1
A23: 1 | C23: 9 | D23: Laboratorium fizyki | E23: =P!tyg*SUMIF($K$6:$AR$6,"W",$K$23:$AR$23) -> 0 | F23: =P!tyg*SUMIF($K$6:$AR$6,"Ć",$K$23:$AR$23) -> 0 | G23: =P!tyg*SUMIF($K$6:$AR$6,"L",$K$23:$AR$23) -> 30 | H23: 0 | I23: 30 | J23: 2 | R23: =30/P!tyg -> 2 | T23: 2
A24: 2 | C24: M1_EM ELEKTRONIKI I METROLOGII | E24: =SUM(E25:E35) -> 165 | F24: 30 | G24: 135 | H24: 30 | I24: 360 | J24: 25 | K24: 0 | L24: 0 | M24: 0 | N24: 0 | O24: 0 | P24: 6 | Q24: =SUM(Q25:Q35) -> 1 | R24: 1 | S24: 0 | T24: 8 | U24: 2 | V24: 0 | W24: 4 | X24: 0 | Y24: 7 | Z24: 2 | AA24: 1 | AB24: 2 | AC24: 0 | AD24: 5 | AE24: 0 | AF24: 0 | AG24: 0 | AH24: 0 | AI24: 0 | AJ24: 1 | AK24: 0 | AL24: 2 | AM24: 2 | AN24: 5 | AO24: 0 | AP24: 0 | AQ24: 0 | AR24: 0 | AS24: 0
A25: 1 | C25: 1 | D25: Elementy elektroniczne | E25: =P!tyg*SUMIF($K$6:$AR$6,"W",$K$25:$AR$25) -> 30 | F25: =P!tyg*SUMIF($K$6:$AR$6,"Ć",$K$25:$AR$25) -> 15 | G25: 0 | H25: 0 | I25: =SUM(E25:H25) -> 45 | J25: =SUMIF($K$6:$AS$6,J$6,$K25:$AS25) -> 3 | P25: =30/P!tyg -> 2 | Q25: =15/P!tyg -> 1 | T25: 3
A26: 1 | C26: 2 | D26: Lab. podstaw elektroniki | E26: 0 | F26: 0 | G26: =P!tyg*SUMIF($K$6:$AR$6,"L",$K$26:$AR$26) -> 15 | H26: 0 | I26: =SUM(E26:H26) -> 15 | J26: 1 | R26: 1 | T26: 1
A27: 1 | C27: 3 | D27: Optoelektronika | E27: =P!tyg*SUMIF($K$6:$AR$6,"W",$K$27:$AR$27) -> 30 | F27: 0 | G27: 0 | H27: 0 | I27: 30 | J27: 2 | P27: =30/P!tyg -> 2 | T27: 2
A28: 1 | C28: 4 | D28: Układy elektroniczne | E28: =P!tyg*SUMIF($K$6:$AR$6,"W",$K$28:$AR$28) -> 30 | F28: =P!tyg*SUMIF($K$6:$AR$6,"Ć",$K$28:$AR$28) -> 15 | G28: 0 | H28: 0 | I28: 45 | J28: 3 | Z28: =30/P!tyg -> 2 | AA28: =15/P!tyg -> 1 | AD28: 3
A29: 1 | C29: 5 | D29: Laboratorium układów elektronicznych | E29: 0 | F29: 0 | G29: =P!tyg*SUMIF($K$6:$AR$6,"L",$K$29:$AR$29) -> 30 | H29: 0 | I29: =SUM(E29:H29) -> 30 | J29: 2 | AB29: =30/P!tyg -> 2 | AD29: 2
A30: 1 | C30: 6 | D30: Podstawy metrologii | E30: =P!tyg*SUMIF($K$6:$AR$6,"W",$K$30:$AR$30) -> 30 | F30: 0 | G30: 0 | H30: 0 | I30: 30 | J30: 2 | P30: =30/P!tyg -> 2 | T30: 2
A31: 1 | C31: 7 | D31: Laboratorium podstaw metrologii | E31: 0 | F31: 0 | G31: =P!tyg*SUMIF($K$6:$AR$6,"L",$K$31:$AR$31) -> 30 | H31: 0 | I31: 30 | J31: 2 | W31: =30/P!tyg -> 2 | Y31: 2
A32: 1 | C32: 8 | D32: Miernictwo elektroniczne / telekomunikacyjne | E32: =P!tyg*SUMIF($K$6:$AR$6,"W",$K$32:$AR$32) -> 15 | G32: =P!tyg*SUMIF($K$6:$AR$6,"L",$K$32:$AR$32) -> 30 | I32: 45 | J32: 3 | AJ32: =15/P!tyg -> 1 | AL32: =30/P!tyg -> 2 | AN32: 3
A33: 1 | C33: 9 | D33: Inżynieria materiał. i konstr. urządzeń | E33: =P!tyg*SUMIF($K$6:$AR$6,"W",$K$33:$AR$33) -> 30 | I33: 30 | J33: 3 | U33: =30/P!tyg -> 2 | Y33: 3
A34: 1 | C34: 10 | D34: Pracownia projektowania i dokumentowania | E34: 0 | F34: 0 | G34: =P!tyg*SUMIF($K$6:$AR$6,"L",$K$34:$AR$34) -> 30 | I34: 30 | J34: 2 | W34: =30/P!tyg -> 2 | Y34: 2
C35: 11 | D35: Projekt zespołowy (wybranej specjalności) | H35: =P!tyg*SUMIF($K$6:$AR$6,"P",$K$35:$AR$35) -> 30 | I35: 30 | J35: 2 | AM35: =30/P!tyg -> 2 | AN35: 2
A36: 2 | C36: M1_TC TECHNIKI CYFROWEJ | E36: =SUM(E37:E44) -> 135 | F36: =SUM(F37:F44) -> 15 | G36: 120 | H36: 0 | I36: =SUM(I37:I44) -> 270 | J36: =SUM(J37:J44) -> 23 | K36: =SUM(K37:K44) -> 0 | L36: 0 | M36: 0 | N36: 0 | O36: 0 | P36: 2 | Q36: 0 | R36: 2 | S36: 0 | T36: 5 | U36: 4 | V36: 1 | W36: 2 | X36: 0 | Y36: 10 | Z36: =SUM(Z37:Z44) -> 3 | AA36: =SUM(AA37:AA44) -> 0 | AB36: =SUM(AB37:AB44) -> 4 | AC36: =SUM(AC37:AC44) -> 0 | AD36: =SUM(AD37:AD44) -> 8 | AE36: 0 | AF36: 0 | AG36: 0 | AH36: 0 | AI36: 0 | AJ36: 0 | AK36: 0 | AL36: 0 | AM36: 0 | AN36: 0 | AO36: 0 | AP36: 0 | AQ36: 0 | AR36: 0 | AS36: 0
A37: 1 | C37: 1 | D37: Przetwarzanie sygnałów | E37: =P!tyg*SUMIF($K$6:$AR$6,"W",$K$37:$AR$37) -> 30 | F37: =P!tyg*SUMIF($K$6:$AR$6,"Ć",$K$37:$AR$37) -> 15 | I37: =SUM(E37:H37) -> 45 | J37: =SUMIF($K$6:$AS$6,J$6,$K37:$AS37) -> 5 | U37: =30/P!tyg -> 2 | V37: =15/P!tyg -> 1 | Y37: 5
A38: 1 | C38: 2 | D38: Podstawy układów cyfrowych | E38: =P!tyg*SUMIF($K$6:$AR$6,"W",$K$38:$AR$38) -> 30 | F38: 0 | G38: 0 | H38: 0 | I38: =SUM(E38:H38) -> 30 | J38: 3 | P38: =30/P!tyg -> 2 | T38: 3
A39: 1 | C39: 3 | D39: Laboratorium układów cyfrowych | E39: 0 | F39: 0 | G39: =P!tyg*SUMIF($K$6:$AR$6,"L",$K$39:$AR$39) -> 30 | H39: 0 | I39: 30 | J39: 2 | R39: 2 | T39: 2
A40: 1 | C40: 4 | D40: Systemy cyfrowe | E40: =P!tyg*SUMIF($K$6:$AR$6,"W",$K$40:$AR$40) -> 30 | I40: 30 | J40: 3 | U40: =30/P!tyg -> 2 | Y40: 3
A41: 1 | C41: 5 | D41: Laboratorium systemów cyfrowych | G41: =P!tyg*SUMIF($K$6:$AR$6,"L",$K$41:$AR$41) -> 30 | I41: 30 | J41: 2 | W41: =30/P!tyg -> 2 | Y41: 2
A42: 1 | C42: 6 | D42: Reprogramowalne systemy cyfrowe | E42: =P!tyg*SUMIF($K$6:$AR$6,"W",$K$42:$AR$42) -> 30 | I42: 30 | J42: 3 | Z42: =30/P!tyg -> 2 | AD42: 3
A43: 1 | C43: 7 | D43: Laboratorium RSC | G43: =P!tyg*SUMIF($K$6:$AR$6,"L",$K$43:$AR$43) -> 30 | I43: 30 | J43: 2 | AB43: =30/P!tyg -> 2 | AD43: 2
C44: 8 | D44: Przedmiot obieralny 2: | E44: =P!tyg*SUMIF($K$6:$AR$6,"W",$K$44:$AR$44) -> 15 | G44: =P!tyg*SUMIF($K$6:$AR$6,"L",$K$44:$AR$44) -> 30 | I44: 45 | J44: 3 | Z44: =15/P!tyg -> 1 | AB44: =30/P!tyg -> 2 | AD44: 3
A45: 2 | C45: M1_IK INŻYNIERII KOMP. I TECHN. SIECIOWYCH | E45: =SUM(E46:E51) -> 105 | F45: 15 | G45: 60 | H45: 15 | I45: 195 | J45: 16 | K45: =SUM(K46:K51) -> 0 | L45: 0 | M45: 0 | N45: 0 | O45: 0 | P45: 0 | Q45: 0 | R45: 0 | S45: 0 | T45: 0 | U45: 0 | V45: 0 | W45: 0 | X45: 0 | Y45: 0 | Z45: 5 | AA45: 1 | AB45: 0 | AC45: 1 | AD45: 9 | AE45: 2 | AF45: 0 | AG45: 4 | AH45: 0 | AI45: 7 | AJ45: 0 | AK45: 0 | AL45: 0 | AM45: 0 | AN45: 0 | AO45: 0 | AP45: 0 | AQ45: 0 | AR45: 0 | AS45: 0
A46: 1 | C46: 1 | D46: Technologie sieciowe (sieci komput. i protokoły) | E46: =P!tyg*SUMIF($K$6:$AR$6,"W",$K$46:$AR$46) -> 30 | F46: =P!tyg*SUMIF($K$6:$AR$6,"Ć",$K$46:$AR$46) -> 15 | I46: =SUM(E46:H46) -> 45 | J46: =SUMIF($K$6:$AS$6,J$6,$K46:$AS46) -> 4 | Z46: =30/P!tyg -> 2 | AA46: =15/P!tyg -> 1 | AD46: 4
A47: 1 | C47: 2 | D47: Projektowanie sieci komputerowej | H47: =P!tyg*SUMIF($K$6:$AR$6,"P",$K$47:$AR$47) -> 15 | I47: 15 | J47: 1 | AC47: 1 | AD47: 1
A48: 1 | C48: 3 | D48: Architektura komputerów i systemy operacyjne | E48: =P!tyg*SUMIF($K$6:$AR$6,"W",$K$48:$AR$48) -> 30 | I48: 30 | J48: 3 | Z48: =30/P!tyg -> 2 | AD48: 3
A49: 1 | C49: 4 | D49: Laboratorium architektury komputerów | G49: =P!tyg*SUMIF($K$6:$AR$6,"L",$K$49:$AR$49) -> 30 | I49: 30 | J49: 2 | AG49: =30/P!tyg -> 2 | AI49: 2
A50: 1 | C50: 2 | D50: Technika mikroprocesorowa | E50: =P!tyg*SUMIF($K$6:$AR$6,"W",$K$50:$AR$50) -> 45 | I50: 45 | J50: 4 | Z50: =15/P!tyg -> 1 | AD50: 1 | AE50: =30/P!tyg -> 2 | AI50: 3
A51: 1 | D51: Laboratorium mikroprocesorów | G51: =P!tyg*SUMIF($K$6:$AR$6,"L",$K$51:$AR$51) -> 30 | H51: 0 | I51: 30 | J51: 2 | AG51: =30/P!tyg -> 2 | AI51: 2
A52: 2 | C52: M1_TEL TELEKOMUNIKACJI | E52: =SUM(E53:E60) -> 165 | F52: =SUM(F53:F60) -> 60 | G52: 45 | H52: 0 | I52: 270 | J52: 20 | K52: 0 | L52: 0 | M52: 0 | N52: 0 | O52: 0 | P52: 0 | Q52: 0 | R52: 0 | S52: 0 | T52: 0 | U52: =SUM(U53:U60) -> 2 | V52: =SUM(V53:V60) -> 1 | W52: 0 | X52: 0 | Y52: 4 | Z52: 4 | AA52: 1 | AB52: 0 | AC52: 0 | AD52: 6 | AE52: 3 | AF52: 1 | AG52: 3 | AH52: 0 | AI52: 7 | AJ52: 2 | AK52: 1 | AL52: 0 | AM52: 0 | AN52: 3 | AO52: 0 | AP52: 0 | AQ52: 0 | AR52: 0 | AS52: 0
A53: 1 | C53: 1 | D53: Teoria obwodów i sygnalów | E53: =P!tyg*SUMIF($K$6:$AR$6,"W",$K$53:$AR$53) -> 30 | F53: =P!tyg*SUMIF($K$6:$AR$6,"Ć",$K$53:$AR$53) -> 15 | G53: 0 | H53: 0 | I53: =SUM(E53:H53) -> 45 | J53: =SUMIF($K$6:$AS$6,J$6,$K53:$AS53) -> 4 | U53: =30/P!tyg -> 2 | V53: =15/P!tyg -> 1 | Y53: 4
A54: 1 | C54: 2 | D54: Podstawy telekomunikacji | E54: =P!tyg*SUMIF($K$6:$AR$6,"W",$K$54:$AR$54) -> 30 | F54: =P!tyg*SUMIF($K$6:$AR$6,"Ć",$K$54:$AR$54) -> 15 | G54: 0 | H54: 0 | I54: 45 | J54: 4 | Z54: =30/P!tyg -> 2 | AA54: =15/P!tyg -> 1 | AD54: 4
A55: 1 | C55: 3 | D55: Systemy i sieci telekomunikacyjne | E55: =P!tyg*SUMIF($K$6:$AR$6,"W",$K$55:$AR$55) -> 30 | F55: 0 | G55: 0 | H55: 0 | I55: 30 | J55: 2 | AE55: =30/P!tyg -> 2 | AI55: 2
A56: 1 | C56: 4 | D56: Techniki bezprzewodowe | E56: =P!tyg*SUMIF($K$6:$AR$6,"W",$K$56:$AR$56) -> 30 | F56: =P!tyg*SUMIF($K$6:$AR$6,"Ć",$K$56:$AR$56) -> 15 | I56: 45 | J56: 3 | AJ56: =30/P!tyg -> 2 | AK56: =15/P!tyg -> 1 | AN56: 3
A57: 1 | C57: 5 | D57: Podstawy energoelektroniki | E57: =P!tyg*SUMIF($K$6:$AR$6,"W",$K$57:$AR$57) -> 30 | F57: =P!tyg*SUMIF($K$6:$AR$6,"Ć",$K$57:$AR$57) -> 0 | I57: 30 | J57: 2 | Z57: =30/P!tyg -> 2 | AD57: 2
C58: 6 | D58: Laboratorium podstaw energoelektroniki | E58: =P!tyg*SUMIF($K$6:$AR$6,"W",$K$58:$AR$58) -> 0 | F58: =P!tyg*SUMIF($K$6:$AR$6,"Ć",$K$58:$AR$58) -> 0 | G58: =P!tyg*SUMIF($K$6:$AR$6,"L",$K$58:$AR$58) -> 15 | I58: 15 | J58: 1 | AG58: 1 | AI58: 1
A59: 1 | C59: 7 | D59: Laboratorium urządzeń komunikacyjnych | G59: =P!tyg*SUMIF($K$6:$AR$6,"L",$K$59:$AR$59) -> 30 | I59: 30 | J59: 2 | AG59: 2 | AI59: 2
A60: 1 | C60: 8 | D60: Przedmiot obieralny 3: | E60: =P!tyg*SUMIF($K$6:$AR$6,"W",$K$60:$AR$60) -> 15 | F60: =P!tyg*SUMIF($K$6:$AR$6,"Ć",$K$60:$AR$60) -> 15 | I60: 30 | J60: 2 | AE60: =15/P!tyg -> 1 | AF60: =15/P!tyg -> 1 | AI60: 2
A61: 2 | C61: M1_PR PROGRAMOWANIA | E61: =SUM(E62:E66) -> 135 | F61: =SUM(F62:F66) -> 75 | G61: 0 | H61: 15 | I61: 225 | J61: 19 | K61: 5 | L61: 3 | M61: 0 | N61: 0 | O61: 11 | P61: =SUM(P62:P66) -> 2 | Q61: =SUM(Q62:Q66) -> 1 | R61: 0 | S61: 0 | T61: 3 | U61: 2 | V61: 1 | W61: 0 | X61: =SUM(X62:X66) -> 1 | Y61: =SUM(Y62:Y66) -> 5 | Z61: 0 | AA61: 0 | AB61: 0 | AC61: 0 | AD61: 0 | AE61: 0 | AF61: 0 | AG61: 0 | AH61: 0 | AI61: 0 | AJ61: 0 | AK61: 0 | AL61: 0 | AM61: 0 | AN61: 0 | AO61: 0 | AP61: 0 | AQ61: 0 | AR61: 0 | AS61: 0
A62: 1 | C62: 1 | D62: Podstawy programowania | E62: =P!tyg*SUMIF($K$6:$AR$6,"W",$K$62:$AR$62) -> 30 | F62: =P!tyg*SUMIF($K$6:$AR$6,"Ć",$K$62:$AR$62) -> 15 | G62: 0 | H62: 0 | I62: =SUM(E62:H62) -> 45 | J62: =SUMIF($K$6:$AS$6,J$6,$K62:$AS62) -> 5 | K62: =30/P!tyg -> 2 | L62: =15/P!tyg -> 1 | O62: 5
A63: 1 | C63: 2 | D63: Algorytmy i struktury danych | E63: =P!tyg*SUMIF($K$6:$AR$6,"W",$K$63:$AR$63) -> 30 | F63: =P!tyg*SUMIF($K$6:$AR$6,"Ć",$K$63:$AR$63) -> 15 | G63: 0 | H63: 0 | I63: =SUM(E63:H63) -> 45 | J63: =SUMIF($K$6:$AS$6,J$6,$K63:$AS63) -> 4 | K63: =30/P!tyg -> 2 | L63: =15/P!tyg -> 1 | O63: 4
A64: 1 | C64: 3 | D64: Technika obliczeniowa i symulacyjna (Metody numeryczne, symulacja komputerowa) | E64: =P!tyg*SUMIF($K$6:$AR$6,"W",$K$64:$AR$64) -> 30 | F64: =P!tyg*SUMIF($K$6:$AR$6,"Ć",$K$64:$AR$64) -> 15 | G64: 0 | H64: 0 | I64: =SUM(E64:H64) -> 45 | J64: =SUMIF($K$6:$AS$6,J$6,$K64:$AS64) -> 4 | U64: =30/P!tyg -> 2 | V64: =15/P!tyg -> 1 | Y64: 4
C65: 4 | D65: Technologie informacyjne (Bazy danych) | E65: =P!tyg*SUMIF($K$6:$AR$6,"W",$K$65:$AR$65) -> 15 | F65: =P!tyg*SUMIF($K$6:$AR$6,"Ć",$K$65:$AR$65) -> 15 | G65: 0 | H65: 0 | I65: =SUM(E65:H65) -> 30 | J65: =SUMIF($K$6:$AS$6,J$6,$K65:$AS65) -> 2 | K65: =15/P!tyg -> 1 | L65: =15/P!tyg -> 1 | O65: 2
A66: 1 | C66: 5 | D66: Programowanie komputerów i urządzeń | E66: =P!tyg*SUMIF($K$6:$AR$6,"W",$K$66:$AR$66) -> 30 | F66: =P!tyg*SUMIF($K$6:$AR$6,"Ć",$K$66:$AR$66) -> 15 | G66: 0 | H66: =P!tyg*SUMIF($K$6:$AR$6,"P",$K$66:$AR$66) -> 15 | I66: =SUM(E66:H66) -> 60 | J66: =SUMIF($K$6:$AS$6,J$6,$K66:$AS66) -> 4 | P66: =30/P!tyg -> 2 | Q66: =15/P!tyg -> 1 | T66: 3 | X66: =15/P!tyg -> 1 | Y66: 1
A67: 2 | C67: M1_MUL SYSTEMÓW MULTIMEDIALNYCH | E67: =SUM(E68:E71) -> 90 | F67: =SUM(F68:F71) -> 30 | G67: 0 | H67: 15 | I67: 135 | J67: 10 | K67: 0 | L67: 0 | M67: 0 | N67: 0 | O67: 0 | P67: 0 | Q67: 0 | R67: 0 | S67: 0 | T67: 0 | U67: 0 | V67: 0 | W67: 0 | X67: 0 | Y67: 0 | Z67: 0 | AA67: 0 | AB67: 0 | AC67: 0 | AD67: 0 | AE67: 4 | AF67: 1 | AG67: 0 | AH67: 0 | AI67: 6 | AJ67: 2 | AK67: 1 | AL67: 0 | AM67: 1 | AN67: 4 | AO67: 0 | AP67: 0 | AQ67: 0 | AR67: 0 | AS67: 0
A68: 1 | C68: 1 | D68: Techniki multimedialne | E68: =P!tyg*SUMIF($K$6:$AR$6,"W",$K$68:$AR$68) -> 30 | F68: =P!tyg*SUMIF($K$6:$AR$6,"Ć",$K$68:$AR$68) -> 15 | G68: 0 | H68: 0 | I68: =SUM(E68:H68) -> 45 | J68: =SUMIF($K$6:$AS$6,J$6,$K68:$AS68) -> 4 | AE68: 2 | AF68: =15/P!tyg -> 1 | AI68: 4
A69: 1 | C69: 2 | D69: Projektowanie aplikacji multimedialnych | E69: 0 | F69: 0 | G69: 0 | H69: =P!tyg*SUMIF($K$6:$AR$6,"P",$K$69:$AR$69) -> 15 | I69: 15 | J69: =SUMIF($K$6:$AS$6,J$6,$K69:$AS69) -> 1 | AM69: =15/P!tyg -> 1 | AN69: 1
C70: 3 | D70: Przedmiot obieralny 1: | E70: =P!tyg*SUMIF($K$6:$AR$6,"W",$K$70:$AR$70) -> 30 | F70: =P!tyg*SUMIF($K$6:$AR$6,"Ć",$K$70:$AR$70) -> 15 | G70: 0 | H70: 0 | I70: =SUM(E70:H70) -> 45 | J70: =SUMIF($K$6:$AS$6,J$6,$K70:$AS70) -> 3 | AJ70: =30/P!tyg -> 2 | AK70: =15/P!tyg -> 1 | AN70: 3
C71: 4 | D71: Wykład monograficzny | E71: =P!tyg*SUMIF($K$6:$AR$6,"W",$K$71:$AR$71) -> 30 | F71: 0 | G71: 0 | H71: 0 | I71: =SUM(E71:H71) -> 30 | J71: =SUMIF($K$6:$AS$6,J$6,$K71:$AS71) -> 2 | AE71: =30/P!tyg -> 2 | AI71: 2
A72: 2 | C72: M1_SP SPECJALNOŚCI INŻYNIERSKIEJ | E72: =P!tyg*SUMIF($K$6:$AR$6,"W",$K$72:$AR$72) -> 210 | F72: =P!tyg*SUMIF($K$6:$AR$6,"Ć",$K$72:$AR$72) -> 60 | G72: =P!tyg*SUMIF($K$6:$AR$6,"L",$K$72:$AR$72) -> 90 | H72: =P!tyg*SUMIF($K$6:$AR$6,"P",$K$72:$AR$72) -> 90 | I72: =SUM(E72:H72) -> 450 | J72: 35 | AE72: 5 | AF72: 3 | AI72: 10 | AJ72: 4 | AK72: 1 | AL72: 4 | AM72: 2 | AN72: 12 | AO72: 5 | AQ72: 2 | AR72: 4 | AS72: 13
A73: 2 | C73: M1_DP DYPLOMOWANIA I PRAKTYKI ZAWOD. | H73: =SUM(H74:H77) -> 60 | I73: =SUM(I74:I77) -> 60 | J73: =SUM(J74:J77) -> 23 | AE73: =SUM(AE74:AE74) -> 0 | AF73: =SUM(AF74:AF77) -> 0 | AG73: =SUM(AG74:AG77) -> 0 | AH73: 0 | AI73: =SUM(AI74:AI77) -> 0 | AJ73: =SUM(AJ74:AJ77) -> 0 | AK73: =SUM(AK74:AK77) -> 0 | AL73: 0 | AM73: 2 | AN73: =SUM(AN74:AN77) -> 6 | AO73: 0 | AP73: 0 | AQ73: 0 | AR73: 2 | AS73: 17
C74: 1 | D74: Praktyka zawodowa (4 tyg.) | H74: =P!tyg*SUMIF($K$6:$AR$6,"P",$K$74:$AR$74) -> 0 | I74: =SUM(E74:H74) -> 0 | J74: =SUMIF($K$6:$AS$6,J$6,$K74:$AS74) -> 4 | AN74: 4
C75: 2 | D75: Proseminarium lub koło naukowe | H75: =P!tyg*SUMIF($K$6:$AR$6,"P",$K$75:$AR$75) -> 30 | I75: =SUM(E75:H75) -> 30 | J75: =SUMIF($K$6:$AS$6,J$6,$K75:$AS75) -> 2 | AM75: =30/P!tyg -> 2 | AN75: 2
C76: 3 | D76: Seminarium dyplomowe inżynierskie | H76: =P!tyg*SUMIF($K$6:$AR$6,"P",$K$76:$AR$76) -> 30 | I76: 30 | J76: =SUMIF($K$6:$AS$6,J$6,$K76:$AS76) -> 2 | AR76: =30/P!tyg -> 2 | AS76: 2
C77: 4 | D77: Projekt dyplomowy inżynierski | H77: =P!tyg*SUMIF($K$6:$AR$6,"P",$K$77:$AR$77) -> 0 | I77: 0 | J77: =SUMIF($K$6:$AS$6,J$6,$K77:$AS77) -> 15 | AS77: 15
A78: 2 | C78: Razem | E78: =E7+E14+E24+E36+E45+E52+E61+E67+E72+E73 -> 1260 | F78: 645 | G78: 480 | H78: 225 | I78: 2610 | J78: 210 | K78: 15 | L78: 15 | M78: 0 | N78: 0 | O78: 30 | P78: 16 | Q78: 9 | R78: 5 | S78: 0 | T78: 30 | U78: 11 | V78: 6 | W78: 6 | X78: 1 | Y78: 30 | Z78: 14 | AA78: 5 | AB78: 6 | AC78: 1 | AD78: 30 | AE78: 14 | AF78: 5 | AG78: 7 | AH78: 0 | AI78: 30 | AJ78: 9 | AK78: 3 | AL78: 6 | AM78: 7 | AN78: 30 | AO78: 5 | AP78: 0 | AQ78: 2 | AR78: 6 | AS78: 30
E79: 0 | K79: =SUM(K78:N78) -> 30 | P79: =SUM(P78:S78) -> 30 | U79: =SUM(U78:X78) -> 24 | Z79: =SUM(Z78:AC78) -> 26 | AE79: =SUM(AE78:AH78) -> 26 | AJ79: =SUM(AJ78:AM78) -> 25 | AO79: =SUM(AO78:AR78) -> 13
C80: Liczba egzaminów | E80: =SUM(K80:AO80) -> 22 | K80: 3 | P80: 3 | U80: 3 | Z80: 4 | AE80: 3 | AJ80: 3 | AO80: 3
E81: =E78/I78*100 -> 48.27586207 | F81: =F78/I78*100 -> 24.71264368 | G81: =G78/I78*100 -> 18.3908046 | H81: =H78/I78*100 -> 8.620689655 | I81: =SUM(E81:H81) -> 100
K82: Praktyka zawodowa - 4 tygodnie, sem. VI
C83: Przedmiot obieralny z nauk humanistycznych:
C84: Gr.1. Technologia kształcenia, Psychopedagogiczne aspekty studiowania, Podstawy psychologii
C85: Gr.2. Integracja europejska, Rynek pracy RP i UE, Filozofia techniki, Historia techniki
C86: Przedmiot obieralny z nauk ekonomicznych:
C87: Podstawy ekonomii
C88: Zarządzanie i marketing
C89: Przedmiot obieralny kierunkowy:
C90: 1. Grafika i komunikacja człowiek-komputer, Programowanie urzadzeń mobilnych
C91: 2. Zastosowania impulsowych układów elektronicznych, Technika analogowa w urządzeniach elektronicznych
C92: 3. Telekomunikacyjne urządzenia mobilne, Pole i fale elektromagnetyczne
C93: Wykład monograficzny:
C94: 1. Nanotechnologie, Sztuczna inteligencja
C97: 19.06.2018r.

Sheet P
B2: Tabela przeliczników i sum kontrolnych
B4: Liczba tygodni w semestrze | C4: 15 | D4: tyg
B5: Maksymalna liczba godzin tygodniowo w semestrze | C5: 32 | D5: max_t
B6: Minimalna liczba godzin studiów | C6: 300 | D6: min_st
B7: Maksymalna liczba godzin studiów | C7: 350 | D7: max_st
B8: Maksymalna liczba godzin w sem. XI | C8: 6 | D8: max_11
B9: Maksymalna liczba egzaminów w semestrze | C9: 7 | D9: egz_s
B10: Maksymalna liczba egzaminów w roku | C10: 10 | D10: egz_r
B11: Suma punktów ECTS w semestrze | C11: 30 | D11: ECTS_s
